[Event "110th Anniversary Open 2020"]
[Site "Hilleroed"]
[Date "2020.02.08"]
[Round "1.2"]
[White "Gukesh D"]
[Black "Madsen, Michael Ole"]
[Result "1-0"]
[ECO "A11"]
[WhiteElo "2542"]
[BlackElo "2042"]
[Annotator "ChessBase"]
[PlyCount "69"]
[EventDate "2020.02.08"]
[EventType "swiss"]
[EventCountry "DEN"]
[SourceTitle "playchess.com"]
[Source "ChessBase"]
[SourceQuality "1"]
[TimeControl "40/5400+30:1800+30"]

1. Nf3 {[%emt 0:00:00]} Nf6 {[%emt 0:00:22]} 2. g3 {[%emt 0:00:30]} d5 {[%emt 0:00:11]} 3. Bg2 {[%emt 0:00:08]} c6 {[%emt 0:00:24]} 4. O-O {[%emt 0:00:12]} Bf5 {[%emt 0:00:04]} 5. d3 {[%emt 0:00:31]} h6 {[%emt 0:00:12]} 6. c4 {[%emt 0:00:54]} e6 {[%emt 0:03:40]} 7. cxd5 {[%emt 0:00:07]} exd5 {[%emt 0:00:25]} 8. Nc3 {[%emt 0:00:57]} Be7 {[%emt 0:01:35]} 9. Qb3 {[%emt 0:03:55]} Qb6 {[%emt 0:02:00]} 10. Qc2 {[%emt 0:00:08]} O-O {[%emt 0:01:30]} 11. e4 {[%emt 0:00:10]} dxe4 {[%emt 0:00:44]} 12. dxe4 {[%emt 0:00:10]} Bh7 {[%emt 0:00:39]} 13. Be3 {[%emt 0:05:05]} Qc7 {[%emt 0:07:11]} 14. Rad1 {[%emt 0:06:54]} Na6 {[%emt 0:03:16]} 15. Qe2 {[%emt 0:03:59]} Bb4 {[%emt 0:09:17]} 16. Nd4 {[%emt 0:05:22]} Bxc3 {[%emt 0:08:32]} 17. bxc3 {[%emt 0:00:11]} Rfe8 {[%emt 0:00:57]} 18. f3 {[%emt 0:01:04]} Rad8 {[%emt 0:01:47]} 19. Bh3 {[%emt 0:08:41]} Qa5 {[%emt 0:05:51]} 20. Qb2 {[%emt 0:04:21]} Qh5 {[%emt 0:03:52]} 21. Bg2 {[%emt 0:01:39]} c5 {[%emt 0:02:38]} 22. Ne2 {[%emt 0:02:00]} b6 {[%emt 0:08:29]} 23. c4 {[%emt 0:03:53]} Rxd1 {[%emt 0:07:42]} 24. Rxd1 {[%emt 0:00:06]} Nb4 {[%emt 0:01:10]} 25. Bf4 {[%emt 0:02:55]} Nc6 {[%emt 0:07:55]} 26. g4 {[%emt 0:04:42]} Nxg4 {[%emt 0:01:35]} 27. fxg4 {[%emt 0:00:12]} Qxg4 {[%emt 0:00:06]} 28. h3 {[%emt 0:02:07]} Qh4 {[%emt 0:03:12]} 29. Bg3 {[%emt 0:00:30]} Qg5 {[%emt 0:00:48]} 30. Rd5 {[%emt 0:02:42]} f5 {[%emt 0:05:15]} 31. Kh2 {[%emt 0:02:37]} Qe7 {[%emt 0:02:05]} 32. Rd6 {[%emt 0:06:18]} Na5 {[%emt 0:03:01]} 33. e5 {[%emt 0:00:16]} Nb7 {[%emt 0:01:41]} 34. Bd5+ {[%emt 0:00:19]} Kh8 {[%emt 0:02:03]} 35. Re6 {[%emt 0:00:06]} 1-0

[Event "110th Anniversary Open 2020"]
[Site "Hilleroed"]
[Date "2020.02.08"]
[Round "1.4"]
[White "Kristiansen, Jens"]
[Black "Jensen, Thore Nyboe"]
[Result "1/2-1/2"]
[ECO "A08"]
[WhiteElo "2406"]
[BlackElo "2006"]
[Annotator "ChessBase"]
[PlyCount "108"]
[EventDate "2020.02.08"]
[EventType "swiss"]
[EventCountry "DEN"]
[SourceTitle "playchess.com"]
[Source "ChessBase"]
[SourceQuality "1"]
[TimeControl "40/5400+30:1800+30"]

1. Nf3 {[%emt 0:00:00]} c5 {[%emt 0:00:03]} 2. g3 {[%emt 0:00:00]} Nf6 {[%emt 0:05:25]} 3. Bg2 {[%emt 0:00:15]} d5 {[%emt 0:00:32]} 4. O-O {[%emt 0:00:14]} g6 {[%emt 0:07:33]} 5. d3 {[%emt 0:01:53]} Bg7 {[%emt 0:00:07]} 6. Nbd2 {[%emt 0:00:37]} Nc6 {[%emt 0:03:18]} 7. e4 {[%emt 0:00:23]} O-O {[%emt 0:02:10]} 8. c3 {[%emt 0:04:23]} dxe4 {[%emt 0:17:56]} 9. dxe4 {[%emt 0:00:26]} Qc7 {[%emt 0:01:19]} 10. Re1 {[%emt 0:03:15]} Ng4 {[%emt 0:17:44]} 11. Nc4 {[%emt 0:05:13]} Rd8 {[%emt 0:09:21]} 12. Qe2 {[%emt 0:01:21]} b6 {[%emt 0:04:16]} 13. h3 {[%emt 0:09:45]} Nge5 {[%emt 0:00:24]} 14. Nfxe5 {[%emt 0:02:39]} Nxe5 {[%emt 0:00:08]} 15. Ne3 {[%emt 0:05:21]} e6 {[%emt 0:01:00]} 16. f4 {[%emt 0:01:27]} Nd3 {[%emt 0:03:53]} 17. Rd1 {[%emt 0:00:25]} Ba6 {[%emt 0:01:11]} 18. Bd2 {[%emt 0:08:16]} Rd7 {[%emt 0:02:09]} 19. e5 {[%emt 0:02:30]} Rad8 {[%emt 0:00:42]} 20. Be1 {[%emt 0:04:32]} c4 {[%emt 0:10:47]} 21. b4 {[%emt 0:09:28]} cxb3 {[%emt 0:05:23]} 22. axb3 {[%emt 0:00:30]} Nxe1 {[%emt 0:00:48]} 23. Rxd7 {[%emt 0:02:38]} Rxd7 {[%emt 0:01:49]} 24. Qxe1 {[%emt 0:00:22]} Bb5 {[%emt 0:00:56]} 25. c4 {[%emt 0:04:51]} Bc6 {[%emt 0:00:18]} 26. Rd1 {[%emt 0:00:29]} Bxg2 {[%emt 0:01:36]} 27. Kxg2 {[%emt 0:01:43]} h5 {[%emt 0:01:27]} 28. Rxd7 {[%emt 0:03:59]} Qxd7 {[%emt 0:00:02]} 29. Qd1 {[%emt 0:00:10]} Qxd1 {[%emt 0:00:51]} 30. Nxd1 {[%emt 0:00:06]} f6 {[%emt 0:00:42]} 31. exf6 {[%emt 0:00:37]} Bxf6 {[%emt 0:00:02]} 32. Nf2 {[%emt 0:03:07]} Kf7 {[%emt 0:01:35]} 33. Nd3 {[%emt 0:01:07]} Bd4 {[%emt 0:00:32]} 34. Kf3 {[%emt 0:00:14]} Kf6 {[%emt 0:00:10]} 35. Ke4 {[%emt 0:00:27]} Bc3 {[%emt 0:00:20]} 36. b4 {[%emt 0:04:22]} a5 {[%emt 0:00:18]} 37. c5 {[%emt 0:00:55]} b5 {[%emt 0:01:08]} 38. bxa5 {[%emt 0:01:06]} Bxa5 {[%emt 0:00:02]} 39. Kd4 {[%emt 0:03:32]} g5 {[%emt 0:01:00]} 40. fxg5+ {[%emt 0:08:30]} Kxg5 {[%emt 0:00:02]} 41. Nf2 {[%emt 0:36:26]} Kf6 {[%emt 0:08:03]} 42. Ne4+ {[%emt 0:00:00]} Ke7 {[%emt 0:00:12]} 43. g4 {[%emt 0:00:00]} hxg4 {[%emt 0:01:07]} 44. hxg4 {[%emt 0:00:00]} Bc7 {[%emt 0:07:30]} 45. Nc3 {[%emt 0:00:00]} Bg3 {[%emt 0:10:29]} 46. Ne4 {[%emt 0:00:00]} Bc7 {[%emt 0:03:18]} 47. g5 {[%emt 0:00:00]} Kf7 {[%emt 0:01:31]} 48. Nd6+ {[%emt 0:00:00]} Kg6 {[%emt 0:00:10]} 49. Nxb5 {[%emt 0:00:00]} Bb8 {[%emt 0:01:04]} 50. c6 {[%emt 0:00:00]} Kxg5 {[%emt 0:00:19]} 51. Kc5 {[%emt 0:00:00]} Kf6 {[%emt 0:01:22]} 52. Nd6 {[%emt 0:00:00]} Ke7 {[%emt 0:00:13]} 53. Ne4 {[%emt 0:00:00]} Bc7 {[%emt 0:00:51]} 54. Kb5 {[%emt 0:00:00]} Kd8 {[%emt 0:00:53]} 1/2-1/2

[Event "110th Anniversary Open 2020"]
[Site "Hilleroed"]
[Date "2020.02.08"]
[Round "1.6"]
[White "Nilssen, John Arni"]
[Black "Ramkilde, Mikael"]
[Result "1-0"]
[ECO "A57"]
[WhiteElo "2333"]
[BlackElo "1951"]
[Annotator "ChessBase"]
[PlyCount "85"]
[EventDate "2020.02.08"]
[EventType "swiss"]
[EventCountry "DEN"]
[SourceTitle "playchess.com"]
[Source "ChessBase"]
[SourceQuality "1"]
[TimeControl "40/5400+30:1800+30"]

1. d4 {[%emt 0:00:00]} c5 {[%emt 0:00:00]} 2. d5 {[%emt 0:00:00]} Nf6 {[%emt 0:00:00]} 3. c4 {[%emt 0:00:00]} b5 {[%emt 0:00:00]} 4. cxb5 {[%emt 0:00:00]} a6 {[%emt 0:00:07]} 5. b6 {[%emt 0:00:00]} d6 {[%emt 0:00:11]} 6. Nc3 {[%emt 0:00:08]} g6 {[%emt 0:00:17]} 7. a4 {[%emt 0:00:10]} Qxb6 {[%emt 0:00:31]} 8. a5 {[%emt 0:00:11]} Qb7 {[%emt 0:01:01]} 9. e4 {[%emt 0:00:36]} Bg7 {[%emt 0:00:53]} 10. Bc4 {[%emt 0:00:16]} O-O {[%emt 0:01:02]} 11. Nge2 {[%emt 0:00:08]} Ne8 {[%emt 0:04:47]} 12. O-O {[%emt 0:00:33]} Nd7 {[%emt 0:01:20]} 13. f4 {[%emt 0:00:19]} f5 {[%emt 0:02:27]} 14. e5 {[%emt 0:10:26]} Nc7 {[%emt 0:05:16]} 15. Qd3 {[%emt 0:03:53]} Kh8 {[%emt 0:02:11]} 16. e6 {[%emt 0:00:47]} Nf6 {[%emt 0:00:25]} 17. Rd1 {[%emt 0:01:11]} Rb8 {[%emt 0:03:11]} 18. h3 {[%emt 0:05:56]} Qa7 {[%emt 0:02:08]} 19. Kh2 {[%emt 0:04:44]} Bb7 {[%emt 0:01:05]} 20. Be3 {[%emt 0:00:36]} Qa8 {[%emt 0:01:21]} 21. Rab1 {[%emt 0:04:30]} Nxe6 {[%emt 0:06:13]} 22. dxe6 {[%emt 0:04:18]} Bxg2 {[%emt 0:00:24]} 23. Ng3 {[%emt 0:29:15]} Rb4 {[%emt 0:08:39]} 24. Rd2 {[%emt 0:06:30]} Bc6 {[%emt 0:04:32]} 25. Rbd1 {[%emt 0:05:11]} Rfb8 {[%emt 0:03:45]} 26. b3 {[%emt 0:04:54]} Bb5 {[%emt 0:01:59]} 27. Bxb5 {[%emt 0:11:23]} axb5 {[%emt 0:00:16]} 28. Na2 {[%emt 0:00:14]} c4 {[%emt 0:01:34]} 29. bxc4 {[%emt 0:00:07]} bxc4 {[%emt 0:00:11]} 30. Qe2 {[%emt 0:00:16]} Rb3 {[%emt 0:04:30]} 31. Bb6 {[%emt 0:00:52]} Rc8 {[%emt 0:05:33]} 32. Rc2 {[%emt 0:02:14]} Qc6 {[%emt 0:04:16]} 33. Bd4 {[%emt 0:01:01]} Kg8 {[%emt 0:03:11]} 34. Nc3 {[%emt 0:00:45]} h6 {[%emt 0:05:47]} 35. Qg2 {[%emt 0:03:34]} Qa6 {[%emt 0:03:40]} 36. Bxf6 {[%emt 0:00:20]} exf6 {[%emt 0:01:28]} 37. Nd5 {[%emt 0:00:14]} Kh7 {[%emt 0:02:06]} 38. Nxf5 {[%emt 0:01:06]} g5 {[%emt 0:04:29]} 39. Qe4 {[%emt 0:00:31]} Kh8 {[%emt 0:01:59]} 40. e7 {[%emt 0:00:38]} Qc6 {[%emt 0:01:36]} 41. Qe6 {[%emt 0:31:08]} c3 {[%emt 0:33:39]} 42. Qf7 {[%emt 0:01:06]} Rg8 {[%emt 0:00:05]} 43. Nxf6 {[%emt 0:00:30]} 1-0

[Event "110th Anniversary Open 2020"]
[Site "Hilleroed"]
[Date "2020.02.08"]
[Round "1.8"]
[White "Stanford, Maxim Barth"]
[Black "Marshall, Michael"]
[Result "1-0"]
[ECO "D34"]
[WhiteElo "2339"]
[BlackElo "1863"]
[Annotator "ChessBase"]
[PlyCount "71"]
[EventDate "2020.02.08"]
[EventType "swiss"]
[EventCountry "DEN"]
[SourceTitle "playchess.com"]
[Source "ChessBase"]
[SourceQuality "1"]
[TimeControl "40/5400+30:1800+30"]

1. Nf3 {[%emt 0:00:00]} d5 {[%emt 0:00:33]} 2. c4 {[%emt 0:00:04]} e6 {[%emt 0:00:35]} 3. g3 {[%emt 0:00:15]} Nf6 {[%emt 0:00:29]} 4. Bg2 {[%emt 0:00:11]} c5 {[%emt 0:00:57]} 5. cxd5 {[%emt 0:00:43]} exd5 {[%emt 0:00:14]} 6. d4 {[%emt 0:00:18]} Nc6 {[%emt 0:01:36]} 7. O-O {[%emt 0:00:20]} h6 {[%emt 0:07:08]} 8. Nc3 {[%emt 0:04:25]} Be7 {[%emt 0:01:20]} 9. dxc5 {[%emt 0:00:45]} Bxc5 {[%emt 0:00:20]} 10. Na4 {[%emt 0:00:16]} Be7 {[%emt 0:01:01]} 11. Be3 {[%emt 0:00:50]} O-O {[%emt 0:02:02]} 12. Bc5 {[%emt 0:03:00]} Bxc5 {[%emt 0:09:26]} 13. Nxc5 {[%emt 0:00:48]} Re8 {[%emt 0:03:59]} 14. Re1 {[%emt 0:02:54]} b6 {[%emt 0:06:24]} 15. Nb3 {[%emt 0:01:16]} Bb7 {[%emt 0:04:50]} 16. Nbd4 {[%emt 0:00:39]} Qd7 {[%emt 0:01:29]} 17. Nxc6 {[%emt 0:01:24]} Bxc6 {[%emt 0:00:20]} 18. Nd4 {[%emt 0:00:41]} Bb7 {[%emt 0:00:48]} 19. Rc1 {[%emt 0:05:03]} Rac8 {[%emt 0:05:10]} 20. Qb3 {[%emt 0:01:59]} Ne4 {[%emt 0:07:25]} 21. Qa3 {[%emt 0:04:22]} Rxc1 {[%emt 0:07:11]} 22. Rxc1 {[%emt 0:00:15]} Ra8 {[%emt 0:02:59]} 23. f3 {[%emt 0:03:47]} Nf6 {[%emt 0:01:09]} 24. Rc3 {[%emt 0:01:06]} Ne8 {[%emt 0:06:53]} 25. Bf1 {[%emt 0:07:28]} Nd6 {[%emt 0:01:33]} 26. b3 {[%emt 0:06:01]} a5 {[%emt 0:15:08]} 27. Bh3 {[%emt 0:05:59]} Nb5 {[%emt 0:04:49]} 28. Bxd7 {[%emt 0:00:40]} Nxa3 {[%emt 0:00:02]} 29. Rc7 {[%emt 0:00:27]} Ba6 {[%emt 0:02:05]} 30. Bc6 {[%emt 0:01:30]} Rd8 {[%emt 0:01:07]} 31. Ra7 {[%emt 0:00:40]} Bxe2 {[%emt 0:02:06]} 32. Nxe2 {[%emt 0:00:06]} d4 {[%emt 0:00:44]} 33. Ra8 {[%emt 0:00:21]} Rxa8 {[%emt 0:00:06]} 34. Bxa8 {[%emt 0:00:06]} d3 {[%emt 0:00:34]} 35. Nc3 {[%emt 0:00:08]} d2 {[%emt 0:01:13]} 36. Kf2 {[%emt 0:49:13]} 1-0

[Event "110th Anniversary Open 2020"]
[Site "Hilleroed"]
[Date "2020.02.08"]
[Round "1.9"]
[White "Vedant Kumar Saravana"]
[Black "Sylvan, Jacob"]
[Result "0-1"]
[ECO "B31"]
[WhiteElo "1750"]
[BlackElo "2335"]
[Annotator "NA"]
[PlyCount "52"]
[EventDate "2020.02.08"]
[EventType "swiss"]
[EventCountry "DEN"]
[SourceTitle "playchess.com"]
[Source "ChessBase"]
[SourceQuality "1"]
[TimeControl "40/5400+30:1800+30"]

1. e4 {[%emt 0:00:00]} c5 {[%emt 0:00:00]} 2. Nf3 {[%emt 0:00:00]} Nc6 {[%emt 0:00:30]} 3. Bb5 {[%emt 0:00:00]} g6 {[%emt 0:00:09]} 4. Bxc6 {[%emt 0:00:45]} dxc6 {[%emt 0:00:06]} 5. Nc3 {[%emt 0:00:18]} Bg7 {[%emt 0:00:08]} 6. O-O {[%emt 0:00:23]} Nf6 {[%emt 0:01:11]} 7. d3 {[%emt 0:00:30]} Nd7 {[%emt 0:00:54] B31: Sicilian: 2...Nc6 3 Bb5 g6.} 8. Be3 {[%emt 0:01:18]} e5 {[%emt 0:01:13] [#]} 9. Qc1 $146 {[%emt 0:00:26]} ({Predecessor:} 9. Qd2 h6 10. h3 b6 11. Nh2 Nf8 12. f4 exf4 13. Rxf4 Be6 14. Rf2 g5 15. Nf3 {½-½ (45) Megaranto,S (2548)-Raghunandan,K (2442) Yogyakarta 2019}) 9... h6 {[%emt 0:00:43]} 10. Ne2 {[%emt 0:00:47]} f5 {[%emt 0:05:07]} 11. Bd2 {[%emt 0:01:49]} f4 {[%emt 0:03:13]} 12. Bc3 {[%emt 0:00:21]} Qe7 {[%emt 0:02:08]} 13. b3 {[%emt 0:04:57]} g5 {[%emt 0:02:47]} 14. Qd2 {[%emt 0:05:19]} ({Better is} 14. Nd2 $15) 14... g4 {[%emt 0:02:36]} 15. Ne1 {[%emt 0:01:39]} Nf8 {[%emt 0:00:31]} 16. f3 {[%emt 0:00:46]} h5 {[%emt 0:04:24]} 17. Bb2 {[%emt 0:09:00]} Ng6 {[%emt 0:02:22]} 18. c3 {[%emt 0:00:40]} Be6 {[%emt 0:01:36]} 19. d4 {[%emt 0:00:44]} O-O-O {[%emt 0:01:13]} 20. Nc2 {[%emt 0:04:40]} Nh4 {[%emt 0:05:52]} 21. Ne1 {[%emt 0:04:42]} Rhg8 {[%emt 0:01:35]} 22. Kh1 {[%emt 0:00:30]} Bh8 {[%emt 0:06:15]} 23. Rg1 {[%emt 0:01:00]} g3 {[%emt 0:00:42]} 24. hxg3 {[%emt 0:01:38]} fxg3 {[%emt 0:00:43]} 25. Qe3 {[%emt 0:03:07] [#]} Nf5 {[%emt 0:00:53] Clearance} 26. exf5 {[%emt 0:03:10]} Qh4# {[%emt 0:00:10]} 0-1

[Event "110th Anniversary Open 2020"]
[Site "Hilleroed"]
[Date "2020.02.08"]
[Round "1.10"]
[White "Jacobsen, Mikkel Manosri"]
[Black "Andersen, Daniel"]
[Result "1-0"]
[ECO "E60"]
[WhiteElo "2315"]
[BlackElo "1806"]
[Annotator "NA"]
[PlyCount "55"]
[EventDate "2020.02.08"]
[EventType "swiss"]
[EventCountry "DEN"]
[SourceTitle "playchess.com"]
[Source "ChessBase"]
[SourceQuality "1"]
[TimeControl "40/5400+30:1800+30"]

1. d4 {[%emt 0:00:00]} Nf6 {[%emt 0:00:00]} 2. c4 {[%emt 0:00:00]} g6 {[%emt 0:00:00]} 3. h4 {[%emt 0:00:00]} h5 {[%emt 0:00:30]} 4. Nc3 {[%emt 0:04:42]} d5 {[%emt 0:01:24]} 5. Bg5 {[%emt 1:27:48]} dxc4 {[%emt 0:01:01]} 6. e4 {[%emt 0:00:00] E60: King's Indian: Unusual lines and Fianchetto Variation without Nc3.} Bg7 {[%emt 0:00:36]} 7. Bxc4 {[%emt 0:00:00]} O-O {[%emt 0:00:34]} 8. Nge2 {[%emt 0:00:00]} c5 {[%emt 0:01:01]} 9. d5 {[%emt 0:00:00]} Nbd7 {[%emt 0:00:51] [#]} 10. Bb3 $146 {[%emt 0:00:00]} ({Predecessor:} 10. f4 Nb6 11. Bb3 Bg4 12. e5 Nh7 13. d6 Nxg5 14. dxe7 Qxe7 15. hxg5 c4 16. Bc2 {0-1 (33) Kadas,G (2229)-Simai,L (2059) Ajka 2004}) 10... a6 {[%emt 0:00:28]} 11. f4 {[%emt 0:00:00] [#]} Ng4 {[%emt 0:02:58]} (11... c4 $1 $17 {[%mdl 512]} 12. Bxc4 b5) 12. d6 {[%emt 0:00:00]} Bf6 {[%emt 0:00:51]} 13. e5 {[%emt 0:00:00]} Bxg5 {[%emt 0:00:23]} 14. hxg5 {[%emt 0:00:00]} exd6 {[%emt 0:00:19]} 15. Qxd6 {[%emt 0:00:00]} Qb6 {[%emt 0:01:03]} 16. Qxb6 {[%emt 0:00:00]} (16. O-O-O $16) 16... Nxb6 {[%emt 0:00:13]} 17. Ne4 {[%emt 0:00:00]} c4 {[%emt 0:01:58]} 18. Bc2 {[%emt 0:00:00]} Ne3 {[%emt 0:02:00]} 19. Nf6+ {[%emt 0:00:00]} Kg7 {[%emt 0:00:40]} 20. Be4 {[%emt 0:00:00]} Bf5 {[%emt 0:04:05]} 21. Bxf5 {[%emt 0:00:00]} Nxf5 {[%emt 0:00:12]} 22. g4 {[%emt 0:00:00]} Ne3 {[%emt 0:00:59]} 23. gxh5 {[%emt 0:00:00]} Nc2+ {[%emt 0:01:54]} 24. Kf2 {[%emt 0:00:00]} Nxa1 {[%emt 0:00:05]} 25. h6+ {[%emt 0:00:00]} Kh8 {[%emt 0:00:21]} 26. f5 {[%emt 0:00:00]} Nc2 {[%emt 0:01:45]} 27. Nf4 {[%emt 0:00:00]} Rg8 {[%emt 0:01:13]} 28. e6 $18 {[%emt 0:00:00]} 1-0

[Event "110th Anniversary Open 2020"]
[Site "Hilleroed"]
[Date "2020.02.08"]
[Round "1.11"]
[White "Lindgaard, Tobias Simon"]
[Black "Siva Mahadevan"]
[Result "0-1"]
[ECO "B25"]
[WhiteElo "1768"]
[BlackElo "2310"]
[Annotator "ChessBase"]
[PlyCount "46"]
[EventDate "2020.02.08"]
[EventType "swiss"]
[EventCountry "DEN"]
[SourceTitle "playchess.com"]
[Source "ChessBase"]
[SourceQuality "1"]
[TimeControl "40/5400+30:1800+30"]

1. Nc3 {[%emt 0:00:00]} c5 {[%emt 0:00:07]} 2. d3 {[%emt 0:00:16]} Nc6 {[%emt 0:00:23]} 3. g3 {[%emt 0:00:12]} g6 {[%emt 0:02:24]} 4. Bg2 {[%emt 0:00:52]} Bg7 {[%emt 0:00:03]} 5. e4 {[%emt 0:02:02]} d6 {[%emt 0:00:07]} 6. f4 {[%emt 0:01:12]} e6 {[%emt 0:00:10]} 7. Nge2 {[%emt 0:02:01]} Nge7 {[%emt 0:00:16]} 8. O-O {[%emt 0:01:08]} O-O {[%emt 0:00:19]} 9. g4 {[%emt 0:04:33]} f5 {[%emt 0:00:35]} 10. h3 {[%emt 0:02:19]} Rb8 {[%emt 0:00:26]} 11. Be3 {[%emt 0:05:28]} b5 {[%emt 0:08:55]} 12. Qe1 {[%emt 0:05:09]} b4 {[%emt 0:08:21]} 13. Nd1 {[%emt 0:00:12]} a5 {[%emt 0:03:18]} 14. g5 {[%emt 0:01:25]} a4 {[%emt 0:04:42]} 15. Rb1 {[%emt 0:00:49]} Ba6 {[%emt 0:01:34]} 16. b3 {[%emt 0:05:05]} axb3 {[%emt 0:01:36]} 17. axb3 {[%emt 0:00:17]} fxe4 {[%emt 0:01:21]} 18. dxe4 {[%emt 0:05:00]} Nd4 {[%emt 0:00:26]} 19. Nxd4 {[%emt 0:05:16]} cxd4 {[%emt 0:00:12]} 20. Bd2 {[%emt 0:00:29]} Bxf1 {[%emt 0:00:31]} 21. Bxf1 {[%emt 0:00:30]} e5 {[%emt 0:00:40]} 22. fxe5 {[%emt 0:01:56]} Bxe5 {[%emt 0:00:28]} 23. Nf2 {[%emt 0:00:35]} Bg3 {[%emt 0:00:13]} 0-1

[Event "110th Anniversary Open 2020"]
[Site "Hilleroed"]
[Date "2020.02.09"]
[Round "3.6"]
[White "Nilssen, John Arni"]
[Black "Ostergaard, Jens"]
[Result "1/2-1/2"]
[ECO "A69"]
[WhiteElo "2333"]
[BlackElo "2229"]
[Annotator "RC"]
[PlyCount "120"]
[EventDate "2020.02.08"]
[EventType "swiss"]
[EventCountry "DEN"]
[SourceTitle "playchess.com"]
[Source "ChessBase"]
[SourceQuality "1"]
[TimeControl "40/5400+30:1800+30"]

1. d4 {[%emt 0:00:00]} Nf6 {[%emt 0:00:00]} 2. c4 {[%emt 0:00:00]} e6 {[%emt 0:00:00]} 3. Nc3 {[%emt 0:00:00]} c5 {[%emt 0:00:00]} 4. d5 {[%emt 0:00:00]} exd5 {[%emt 0:00:07]} 5. cxd5 {[%emt 0:00:01]} d6 {[%emt 0:00:11]} 6. Nf3 {[%emt 0:00:09]} g6 {[%emt 0:00:13]} 7. Nd2 {[%emt 0:00:06]} Bg7 {[%emt 0:00:34]} 8. e4 {[%emt 0:00:06]} O-O {[%emt 0:00:30]} 9. Be2 {[%emt 0:00:05]} a6 {[%emt 0:06:20]} 10. a4 {[%emt 0:00:13]} Nbd7 {[%emt 0:00:30]} 11. f4 {[%emt 0:00:37]} Re8 {[%emt 0:01:59]} 12. O-O {[%emt 0:01:19]} Rb8 {[%emt 0:02:43]} 13. Kh1 {[%emt 0:00:21]} Qc7 {[%emt 0:08:00]} 14. e5 {[%emt 0:03:49]} dxe5 {[%emt 0:00:59]} 15. Nc4 {[%emt 0:00:10]} e4 {[%emt 0:19:46]} 16. f5 {[%emt 0:02:01]} Ra8 {[%emt 0:05:04]} 17. Bf4 {[%emt 0:08:03]} Qd8 {[%emt 0:00:09]} 18. fxg6 {[%emt 0:10:14]} hxg6 {[%emt 0:17:47]} 19. a5 {[%emt 0:23:29]} b5 {[%emt 0:06:22]} 20. axb6 {[%emt 0:05:16]} Nxb6 {[%emt 0:01:05]} 21. Nd6 {[%emt 0:11:44]} Rf8 {[%emt 0:05:08]} 22. Bg3 {[%emt 0:15:48]} Ra7 {[%emt 0:07:03]} 23. Nxc8 {[%emt 0:10:23]} Qxc8 {[%emt 0:02:42]} 24. Bh4 {[%emt 0:00:50]} Nbd7 {[%emt 0:03:31]} 25. Nb5 {[%emt 0:01:33]} Ra8 {[%emt 0:01:04]} 26. Nd6 {[%emt 0:00:26]} Qb8 {[%emt 0:00:53]} 27. Nc4 {[%emt 0:00:39]} Re8 {[%emt 0:05:09]} 28. Bg3 {[%emt 0:01:38]} Qb7 {[%emt 0:00:32]} 29. Nd6 {[%emt 0:00:57]} Qxb2 {[%emt 0:03:06]} 30. Nxe8 {[%emt 0:00:19]} Nxe8 {[%emt 0:00:47]} 31. Rxa6 {[%emt 0:00:36]} Rc8 {[%emt 0:00:59]} 32. Ra7 {[%emt 0:02:20]} Ndf6 {[%emt 0:02:02]} 33. Bc4 {[%emt 0:01:09]} Qb6 {[%emt 0:00:38]} 34. Ra6 {[%emt 0:00:20]} Qb4 {[%emt 0:00:05]} 35. Qe2 {[%emt 0:00:37]} Rd8 {[%emt 0:00:40]} 36. Bh4 {[%emt 0:01:12]} Rd6 {[%emt 0:00:47]} 37. Ra8 {[%emt 0:00:54]} Kh7 {[%emt 0:00:19]} 38. Ra7 {[%emt 0:00:45]} Rd7 {[%emt 0:00:35]} 39. Rxd7 {[%emt 0:00:14]} Nxd7 {[%emt 0:00:04]} 40. Bg3 {[%emt 0:00:58]} f5 {[%emt 0:00:41]} 41. d6 {[%emt 0:04:13]} Qb6 {[%emt 0:04:24]} 42. Rxf5 {[%emt 0:02:55]} gxf5 {[%emt 0:11:47]} 43. Qh5+ {[%emt 0:02:14]} Bh6 {[%emt 0:00:05]} 44. Qxf5+ {[%emt 0:08:12]} Kh8 {[%emt 0:00:07]} 45. h4 {[%emt 0:09:14]} Nef6 {[%emt 0:10:08]} 46. Kh2 {[%emt 0:01:27]} Qd8 {[%emt 0:02:32]} 47. Qg6 {[%emt 0:01:51]} Qf8 {[%emt 0:01:09]} 48. Be6 {[%emt 0:00:08]} e3 {[%emt 0:02:10]} 49. Qf5 {[%emt 0:00:47]} Qg7 {[%emt 0:00:50]} 50. Be1 {[%emt 0:00:07]} Qf8 {[%emt 0:01:44]} 51. Bxd7 {[%emt 0:02:56]} Qxd6+ {[%emt 0:00:50]} 52. Bg3 {[%emt 0:00:05]} Qxd7 {[%emt 0:00:04]} 53. Qxf6+ {[%emt 0:00:04]} Bg7 {[%emt 0:00:18]} 54. Qg5 {[%emt 0:00:08]} Qe6 {[%emt 0:00:51]} 55. Qxc5 {[%emt 0:01:05]} e2 {[%emt 0:00:07]} 56. Qa5 {[%emt 0:00:39]} Qe3 {[%emt 0:00:44]} 57. Qh5+ {[%emt 0:02:02]} Kg8 {[%emt 0:00:05]} 58. Qd5+ {[%emt 0:00:07]} Kh8 {[%emt 0:00:07]} 59. Qh5+ {[%emt 0:01:03]} Kg8 {[%emt 0:00:05]} 60. Qd5+ {[%emt 0:00:28]} Kh8 {[%emt 0:00:08]} 1/2-1/2

[Event "110th Anniversary Open 2020"]
[Site "Hilleroed"]
[Date "2020.02.09"]
[Round "3.10"]
[White "Andersen, Daniel"]
[Black "Brondal, Paul"]
[Result "0-1"]
[ECO "A12"]
[WhiteElo "1806"]
[BlackElo "2074"]
[Annotator "NA RC"]
[PlyCount "51"]
[EventDate "2020.02.08"]
[EventType "swiss"]
[EventCountry "DEN"]
[SourceTitle "playchess.com"]
[Source "ChessBase"]
[SourceQuality "1"]
[TimeControl "40/5400+30:1800+30"]

1. c4 {[%emt 0:00:00]} c6 {[%emt 0:00:00]} 2. Nf3 {[%emt 0:00:00]} d5 {[%emt 0:00:00]} 3. b3 {[%emt 0:00:06]} Nf6 {[%emt 0:00:18]} 4. g3 {[%emt 0:00:31]} Bf5 {[%emt 0:00:57]} 5. Bg2 {[%emt 0:00:16]} h6 {[%emt 0:00:33]} 6. d3 {[%emt 0:00:39]} e6 {[%emt 0:00:54]} 7. O-O {[%emt 0:00:08]} Be7 {[%emt 0:00:57]} 8. Bb2 {[%emt 0:00:08]} O-O {[%emt 0:00:28]} 9. Nbd2 {[%emt 0:00:40]} Nbd7 {[%emt 0:02:06]} 10. Qc2 {[%emt 0:00:29]} Bh7 {[%emt 0:01:58]} 11. Rad1 {[%emt 0:00:28]} a5 {[%emt 0:04:10] A12: English Opening: 1...c6 with b3 by White.} 12. a3 {[%emt 0:00:59]} Nc5 {[%emt 0:02:51]} 13. Rfe1 {[%emt 0:05:27]} Rc8 {[%emt 0:06:53] [#]} 14. b4 $146 {[%emt 0:05:12] [#]} (14. Bd4 $11) ({Predecessor:} 14. Bc3 b5 15. Qb2 Qb6 16. Ne5 Rfd8 17. cxd5 Nxd5 18. Nxc6 Rxc6 19. Bxg7 Bf8 20. Bd4 {0-1 (40) Forcen Esteban,D (2567)-Kollars,D (2562) chess.com INT 2019}) 14... axb4 $1 {[%emt 0:01:06]} 15. axb4 {[%emt 0:00:04]} Na6 {[%emt 0:00:42]} 16. Qb3 {[%emt 0:00:31]} Bxb4 {[%emt 0:01:35]} 17. Rb1 {[%emt 0:01:57]} dxc4 {[%emt 0:02:53]} 18. Qxc4 {[%emt 0:00:49]} b5 {[%emt 0:05:40]} 19. Qb3 {[%emt 0:00:52] [#]} c5 $1 {[%emt 0:03:57]} 20. Ba3 {[%emt 0:03:12]} (20. Red1 $17) 20... Nd5 {[%emt 0:04:02]} 21. Bxb4 {[%emt 1:18:02]} Naxb4 {[%emt 0:01:01]} 22. Rbc1 {[%emt 0:00:00]} Qe7 {[%emt 0:01:59]} 23. e4 {[%emt 0:00:00]} Nc7 {[%emt 0:05:19]} 24. d4 {[%emt 0:00:00]} c4 $19 {[%emt 0:00:34]} 25. Qa3 {[%emt 0:00:00]} Ra8 {[%emt 0:00:10]} 26. Nb1 {[%emt 0:02:30]} 0-1